bitfinex/quotes_ETHUSD_20241204
["timestamp","ask_amount","ask_price","bid_price","bid_amount"]
[1733347555378,1.5116,3864.8,3863.6,0.1]
[1733347555579,1.5116,3864.8,3863.9,0.1]
[1733347555789,0.99889872,3864.7,3863.9,0.1]
[1733347556491,0.99889872,3864.7,3864.0,0.55]
[1733347557189,0.99889872,3864.7,3863.9,0.1]
[1733347557495,1.5706,3864.6,3863.6,3.77477527]
[1733347557720,1.5706,3864.6,3863.7,0.1]
[1733347557926,2.16054987,3864.5,3863.7,0.1]
[1733347558420,1.5706,3864.5,3864.0,3.87477527]
[1733347558631,3.33,3864.7,3864.4,0.1]
[1733347558839,3.33,3864.7,3863.8,0.2581]
[1733347558840,3.33,3864.7,3864.3,3.55]
[1733347559124,1.5561,3864.6,3864.2,3.0]
[1733347559310,1.5561,3864.6,3864.1,3.1]
[1733347559621,1.5561,3864.6,3863.9,0.3581]
[1733347559828,4.8861,3864.6,3863.9,0.3581]
[1733347560043,4.8861,3864.6,3864.3,0.55]
[1733347560330,4.8861,3864.6,3864.5,3.0]
[1733347560640,4.8861,3864.6,3864.3,0.55]
[1733347560782,4.8861,3864.6,3864.4,0.55]
[1733347560987,4.8861,3864.6,3864.1,3.2581]
[1733347561298,4.8861,3864.6,3864.2,0.55]
[1733347561794,4.8861,3864.6,3864.3,0.1]
[1733347562127,8.2161,3864.6,3864.2,3.55]
[1733347562335,8.2161,3864.6,3864.2,0.55]
[1733347562631,8.2161,3864.6,3864.1,0.55]
[1733347562829,8.2161,3864.6,3864.0,0.55]
[1733347563134,8.2161,3864.6,3864.1,0.1]
[1733347563335,6.66,3864.6,3864.5,0.9081]
[1733347563629,6.66,3864.6,3864.5,23.378188]
[1733347563835,6.66,3864.6,3864.5,21.342617]
[1733347564035,6.66,3864.6,3864.5,24.342617]
[1733347564265,6.66,3864.6,3864.5,25.977917]
[1733347564398,6.66,3864.6,3864.5,23.212554]
[1733347564600,9.99,3864.6,3864.5,15.384938]
[1733347564840,9.99,3864.6,3864.5,15.484938]
[1733347565616,9.99,3864.6,3864.5,0.8081]
[1733347565831,9.99,3864.6,3864.4,0.2581]
[1733347566140,9.99,3864.6,3864.5,3.0]
[1733347566343,9.99,3864.6,3864.5,8.381]
[1733347566645,9.99,3864.6,3864.5,9.0891]
[1733347566838,9.99,3864.6,3864.5,0.2581]
[1733347567039,16.2381,3864.6,3864.5,3.0]
[1733347567204,14.9061,3864.6,3864.3,0.1]
[1733347567405,13.32,3864.6,3864.5,0.65]
[1733347567602,13.32,3864.6,3864.5,6.78245127]
[1733347567918,1.5861,3864.5,3864.1,3.78245127]
[1733347568232,1.5861,3864.5,3863.7,4.82631775]
[1733347568233,1.5861,3864.5,3863.7,0.2581]
[1733347568428,1.5861,3864.3,3863.5,3.78245127]
[1733347568635,1.5861,3864.3,3863.2,3.78245127]
[1733347568947,1.5861,3864.3,3863.1,0.1]
[1733347569328,3.33,3864.3,3863.1,0.1]
[1733347569528,1.5325,3864.1,3863.1,0.1]
[1733347570660,1.5325,3864.1,3863.6,0.55]
[1733347570967,3.33,3864.3,3863.7,0.1]
[1733347571470,3.33,3864.3,3864.1,0.1]
[1733347571636,3.33,3864.3,3863.7,0.3581]
[1733347571836,6.66,3864.3,3864.1,0.1]
[1733347572132,6.66,3864.3,3863.9,0.1]
[1733347572581,6.66,3864.3,3864.0,0.55]
[1733347574131,6.66,3864.3,3863.9,0.1]
[1733347574333,9.99,3864.3,3864.0,0.55]
[1733347574534,9.99,3864.3,3863.7,0.2581]
[1733347574753,1.6492,3864.1,3863.5,3.777111]
[1733347574964,1.6492,3864.1,3863.3,0.3581]
[1733347575285,1.6492,3864.1,3862.8,3.777111]
[1733347575573,1.6492,3864.1,3862.6,3.777111]
[1733347575785,9.99,3864.3,3862.7,0.2581]
[1733347575786,1.6492,3863.9,3862.7,0.2581]
[1733347575967,1.6492,3863.9,3862.8,0.2581]
[1733347576715,1.6058,3863.8,3862.5,0.33188617]
[1733347576919,1.6058,3863.8,3862.0,0.2581]
[1733347577216,1.6058,3863.8,3861.9,0.1]
[1733347577375,0.2,3863.5,3861.8,0.1]
[1733347577583,1.553,3863.4,3861.7,3.77859254]
[1733347577875,1.553,3863.4,3861.7,3.87859254]
[1733347578431,1.553,3863.4,3862.1,0.1]
[1733347578720,1.7083,3863.3,3862.1,0.1]
[1733347579010,1.7083,3863.3,3861.7,7.65710653]
[1733347579173,1.7083,3863.3,3861.7,3.87859254]
[1733347579174,1.553,3863.2,3861.7,3.87859254]
[1733347579776,1.553,3863.2,3861.7,3.77859254]
[1733347580112,1.553,3863.0,3861.7,3.77859254]
[1733347580337,1.553,3863.0,3861.8,3.1]
[1733347580625,1.553,3862.6,3861.7,3.77859254]
[1733347581724,1.553,3862.5,3861.7,3.77859254]
[1733347581925,1.553,3862.3,3861.7,3.77859254]
[1733347582636,1.753,3862.2,3861.7,3.77859254]
[1733347582794,1.553,3861.7,3861.0,0.1635462]
[1733347582992,0.2,3861.4,3859.5,0.1]
[1733347583203,1.553,3861.3,3859.5,0.1]
[1733347583394,0.2,3861.4,3859.0,1.5297]
[1733347583395,1.553,3861.1,3859.1,0.1]
[1733347584004,1.553,3861.1,3859.5,0.1]
[1733347584204,1.553,3861.1,3858.6,1.5297]
[1733347584205,1.753,3861.0,3859.1,0.1]
[1733347585026,1.753,3861.0,3858.9,0.1]
[1733347585235,1.753,3861.0,3858.6,1.5297]
[1733347585236,1.753,3861.0,3859.3,0.1]
[1733347585403,1.553,3860.8,3859.3,0.1]
[1733347586623,4.8704868,3860.8,3860.2,3.0]
[1733347586823,4.8704868,3860.8,3859.3,0.1]
[1733347587203,4.8704868,3860.8,3859.6,0.1]
[1733347587617,4.22296415,3860.8,3859.6,0.1]
[1733347587827,0.47487942,3860.7,3859.6,0.1]
[1733347589014,0.47487942,3860.7,3859.9,0.1]
[1733347589015,3.33,3860.7,3859.9,0.1]
[1733347589211,3.33,3860.7,3860.1,0.1]
[1733347589937,3.33,3860.7,3860.5,0.1]
[1733347590230,3.33,3860.7,3860.6,5.65683]
[1733347590739,3.33,3860.7,3860.6,7.18653]
[1733347591048,3.33,3860.7,3860.6,7.73653]
[1733347591433,6.66,3860.7,3860.6,7.73653]
[1733347592200,6.66,3860.7,3860.6,7.93653]
[1733347592362,1.48812624,3860.7,3860.6,16.77653]
[1733347592684,2.23231966,3860.8,3860.7,5.1797]
[1733347592855,2.97658311,3861.1,3861.0,0.1]
[1733347593056,2.97658311,3861.1,3861.0,5.472]
[1733347593255,2.97658311,3861.1,3861.0,56.072]
[1733347593582,0.39107666,3861.1,3861.0,56.072]
[1733347593744,4.8862,3863.3,3862.5,0.65]
[1733347593947,4.8862,3863.3,3862.5,9.032048]
[1733347594169,4.8862,3863.3,3862.5,17.35964]
[1733347594482,4.8862,3862.6,3862.1,0.1]
[1733347594687,0.48862,3862.5,3862.1,0.1]
[1733347594983,4.8862,3862.6,3861.8,0.65]
[1733347595180,4.8862,3862.6,3862.1,0.1]
[1733347596267,8.2162,3862.6,3862.1,0.1]
[1733347596468,6.66,3862.6,3862.5,0.1]
[1733347596671,6.66,3862.6,3862.5,3.1]
[1733347596910,6.66,3862.6,3862.5,19.824935]
[1733347597066,6.66,3862.6,3862.5,17.44588]
[1733347597702,8.2547,3862.6,3861.8,0.88376849]
[1733347597908,0.666,3862.5,3861.6,0.1]
[1733347598093,0.666,3862.5,3860.2,0.1]
[1733347598293,0.666,3862.5,3860.2,0.12589768]
[1733347598589,8.2547,3862.6,3860.3,0.27960001]
[1733347598794,3.33,3862.5,3860.3,0.27960001]
[1733347599104,3.33,3862.5,3860.4,0.55]
[1733347599774,3.33,3862.5,3860.6,0.55]
[1733347599975,3.33,3862.5,3861.2,0.55]
[1733347600218,3.33,3862.5,3861.6,0.55]
[1733347600401,3.33,3862.5,3861.8,3.55]
[1733347600573,3.33,3862.5,3862.0,3.55]
[1733347600769,3.33,3862.5,3862.2,0.55]
[1733347601098,3.33,3862.5,3862.4,3.55]
[1733347601287,6.66,3862.5,3862.4,17.146742]
[1733347601512,6.66,3862.5,3862.4,28.676813]
[1733347601679,6.66,3862.5,3862.4,44.195484]
[1733347602013,4.07505379,3862.5,3862.4,39.363892]
[1733347602220,1.49011689,3862.5,3862.4,39.363892]
[1733347602596,1.49011689,3862.5,3862.4,26.03918414]
[1733347602801,1.49011689,3862.5,3862.4,25.20919314]
[1733347603674,1.49011689,3862.5,3862.4,10.47912814]
[1733347603675,4.82011689,3862.5,3862.4,10.47912814]
[1733347603874,4.82011689,3862.5,3862.4,6.29010214]
[1733347605115,4.82011689,3862.5,3862.4,6.84010214]
[1733347605976,8.15011689,3862.5,3862.4,6.84010214]
[1733347607621,8.15011689,3862.5,3862.4,7.09820214]
[1733347608488,11.48011689,3862.5,3862.4,8.59900214]
[1733347609996,11.48011689,3862.5,3862.4,6.85735214]
[1733347610798,14.81011689,3862.5,3862.4,6.85735214]
[1733347612202,14.81011689,3862.5,3862.4,1.14820714]
[1733347612598,14.81011689,3862.5,3862.4,4.14820714]
[1733347613005,14.81011689,3862.5,3862.4,34.31706214]
[1733347613206,18.14011689,3862.5,3862.4,11.72475314]
[1733347613409,18.14011689,3862.5,3862.4,7.11559014]
[1733347614937,18.14011689,3862.5,3862.4,6.56559014]
[1733347615234,18.14011689,3862.5,3862.4,9.40812414]
[1733347615627,21.47011689,3862.5,3862.4,0.59820714]
[1733347615832,25.72650334,3862.5,3862.4,0.2581]
[1733347616406,1.5885,3862.4,3860.3,1.5206]
[1733347617043,1.5885,3862.4,3860.4,0.2581]
[1733347617336,1.5885,3862.4,3860.3,1.5206]
[1733347617748,1.5885,3862.4,3860.4,0.55]
[1733347617953,1.5885,3862.4,3860.3,0.3391783]
[1733347617954,1.6519,3862.2,3860.3,0.3391783]
[1733347618135,1.6519,3862.2,3859.4,1.5265]
[1733347618136,1.6519,3862.2,3859.6,0.2581]
[1733347619114,2.5960203,3862.3,3859.6,0.33107139]
[1733347619115,1.5853,3862.0,3859.6,0.33107139]
[1733347619423,1.5853,3862.0,3859.4,1.5265]
[1733347619631,1.6448,3861.5,3859.4,0.33981957]
[1733347619948,1.83928,3861.4,3858.7,1.6013]
[1733347620257,1.6448,3861.1,3858.8,4.0]
[1733347620462,1.6448,3861.1,3858.3,1.6013]
[1733347620463,1.6448,3861.1,3858.4,0.02591287]
[1733347620763,1.6448,3861.1,3858.3,1.62721148]
[1733347620931,1.6448,3861.1,3858.3,4.6013]
[1733347621136,0.19448,3861.4,3858.4,0.2581]
[1733347621137,1.77268,3861.0,3858.4,0.2581]
[1733347621312,1.6082,3861.0,3858.4,0.2581]
[1733347621512,1.6082,3861.0,3858.5,0.8081]
[1733347621917,1.6082,3861.0,3858.3,4.93798961]
[1733347621918,1.7082,3861.0,3858.3,1.93798961]
[1733347622555,1.6082,3861.0,3858.3,1.93798961]
[1733347622853,1.6344,3860.8,3858.3,1.93798961]
[1733347623461,1.6344,3860.8,3858.4,0.55]
[1733347624354,1.6344,3860.8,3858.3,0.33668961]
[1733347624660,1.6372,3860.6,3857.9,1.5266]
[1733347624813,0.2,3860.8,3857.9,1.5266]
[1733347624814,1.6372,3860.4,3857.9,1.5266]
[1733347625855,1.6372,3860.4,3858.0,0.55]
[1733347626856,1.6372,3860.4,3860.2,3.0]
[1733347627065,1.6372,3860.4,3858.1,0.02591529]
[1733347627281,1.6372,3860.4,3858.3,0.55]
[1733347627419,4.9672,3860.4,3858.3,0.55]
[1733347628136,1.5333,3860.3,3858.3,0.55]
[1733347628674,1.5333,3860.3,3858.3,0.88610035]
[1733347629963,1.5333,3860.2,3858.3,0.88610035]
[1733347631466,1.5333,3860.2,3858.3,0.33610035]
[1733347631656,1.5333,3860.2,3857.8,1.5585]
[1733347631842,3.33,3860.3,3857.8,1.5585]
[1733347631843,1.5975,3860.0,3857.8,1.5585]
[1733347632351,1.5975,3859.9,3857.9,0.2581]
[1733347632534,1.5975,3859.9,3857.1,0.1635462]
[1733347632535,1.5975,3859.9,3858.0,0.2581]
[1733347632951,1.83864388,3859.8,3858.0,0.2581]
[1733347633185,1.5054,3859.6,3857.1,0.1635462]
[1733347633592,1.5054,3859.6,3857.2,0.2581]
[1733347634096,1.5054,3859.6,3857.6,0.2581]
[1733347634691,1.5928,3859.5,3857.6,0.2581]
[1733347635248,1.7928,3859.5,3857.6,0.2581]
[1733347635490,1.536,3859.3,3857.6,0.2581]
[1733347636052,1.536,3859.3,3857.2,0.2581]
[1733347636257,1.536,3859.2,3857.2,0.2581]
[1733347636989,1.52367563,3859.2,3857.2,0.2581]
[1733347637196,3.33,3859.2,3857.2,0.2581]
[1733347637380,0.38969664,3859.1,3859.0,3.0]
[1733347637551,0.38969664,3859.1,3857.2,0.55]
[1733347638197,0.38969664,3859.1,3857.1,0.49792756]
[1733347639196,0.38969664,3859.1,3857.1,0.1635462]
[1733347639650,3.71969664,3859.1,3857.1,0.1635462]
[1733347639849,0.72496966,3859.0,3857.1,0.1635462]
[1733347640052,1.6012,3858.9,3857.1,0.1635462]
[1733347641673,1.6012,3858.9,3857.2,0.55]
[1733347642208,1.5151,3858.8,3857.2,0.55]
[1733347643174,1.5151,3858.8,3857.1,0.1635462]
[1733347643393,1.6078,3858.6,3857.1,0.1635462]
[1733347644598,1.6374,3858.5,3857.1,0.1635462]
[1733347646893,3.33,3858.5,3857.1,0.1635462]
[1733347647132,1.6499,3858.4,3857.2,0.55]
[1733347647440,1.6499,3858.4,3857.4,0.2581]
[1733347647790,1.6499,3858.4,3857.5,0.55]
[1733347647995,1.6499,3858.4,3857.4,0.2581]
[1733347647996,2.48089,3858.4,3857.4,0.2581]
[1733347648191,1.5415,3858.3,3857.4,0.2581]
[1733347648437,1.5415,3858.3,3857.1,0.5083264]
[1733347648438,1.5415,3858.3,3857.2,0.2581]
[1733347648808,1.5415,3858.3,3857.1,0.5083264]
[1733347648995,1.6034,3858.1,3857.1,0.5083264]
[1733347649449,1.6171,3858.0,3857.1,0.5083264]
[1733347650621,1.6171,3858.0,3857.1,0.1635462]
[1733347651766,1.60483355,3858.0,3857.1,0.1635462]
[1733347652092,3.33,3858.0,3857.1,0.1635462]
[1733347652290,0.7230249,3857.9,3857.1,0.1635462]
[1733347654344,4.0530249,3857.9,3857.1,0.1635462]
[1733347654787,1.6238,3857.8,3857.1,0.1635462]
[1733347656865,4.9538,3857.8,3857.1,0.1635462]
[1733347657983,4.9538,3857.8,3857.3,0.2581]
[1733347658189,4.9538,3857.8,3857.5,3.0]
[1733347658376,4.9538,3857.8,3857.7,3.0]
[1733347658577,4.9538,3857.8,3857.3,0.2581]
[1733347658811,4.9538,3857.8,3857.1,0.1635462]
[1733347658812,6.28020276,3857.8,3857.1,0.1635462]
[1733347659110,9.61020276,3857.8,3857.1,0.1635462]
[1733347661614,12.94020276,3857.8,3857.1,0.1635462]
[1733347664084,16.27020276,3857.8,3857.1,0.1635462]
[1733347664287,2.29302028,3857.7,3857.1,0.1635462]
[1733347665512,1.5736,3857.6,3857.1,0.1635462]
[1733347666577,4.9036,3857.6,3857.1,0.1635462]
[1733347667889,3.33,3857.6,3857.3,3.0]
[1733347668139,3.33,3857.6,3857.5,3.2581]
[1733347668276,3.33,3857.6,3857.5,0.2581]
[1733347668626,3.33,3857.6,3857.5,3.0]
[1733347668919,3.33,3857.6,3857.4,3.0]
[1733347668920,6.66,3857.6,3857.4,3.0]
[1733347669118,6.66,3857.6,3857.3,3.0]
[1733347669476,6.66,3857.6,3857.2,3.33478585]
[1733347669679,6.66,3857.6,3857.5,0.2581]
[1733347669983,6.66,3857.6,3857.3,3.0]
[1733347669984,8.2805,3857.6,3857.3,3.0]
[1733347670198,8.2805,3857.6,3857.1,0.49317839]
[1733347670422,6.66,3857.6,3857.1,0.49317839]
[1733347670636,6.66,3857.6,3857.1,6.40632821]
[1733347670946,6.37337417,3857.6,3857.3,7.84128201]
[1733347671240,6.37337417,3857.6,3857.5,3.8081]
[1733347671441,9.70337417,3857.6,3857.5,33.99494368]
[1733347671607,9.70337417,3857.6,3857.5,31.36760468]
[1733347671808,9.70337417,3857.6,3857.5,29.03008989]
[1733347672011,9.70337417,3857.6,3857.5,21.78681789]
[1733347672314,9.70337417,3857.6,3857.5,18.06408889]
[1733347672529,9.70337417,3857.6,3857.5,9.32635]
[1733347672746,9.70337417,3857.6,3857.5,6.8372]
[1733347672900,9.70337417,3857.6,3857.5,3.50165501]
[1733347673105,9.70337417,3857.6,3857.5,0.2581]
[1733347673446,9.70337417,3857.6,3857.5,6.50174625]
[1733347673614,9.70337417,3857.6,3857.5,3.2581]
[1733347673821,13.03337417,3857.6,3857.5,3.2581]
[1733347674031,13.03337417,3857.6,3857.5,0.2581]
[1733347674348,13.03337417,3857.6,3857.5,2.4268]
[1733347674507,13.03337417,3857.6,3857.5,12.936023]
[1733347674704,13.03337417,3857.6,3857.5,12.7900794]
[1733347674909,13.03337417,3857.6,3857.5,0.2581]
[1733347675104,13.03337417,3857.6,3857.4,0.2581]
[1733347675649,13.03337417,3857.6,3857.5,10.5837864]
[1733347675809,13.03337417,3857.6,3857.5,22.2873154]
[1733347676154,13.03337417,3857.6,3857.5,7.0451564]
[1733347676454,16.36337417,3857.6,3857.5,22.0069004]
[1733347676766,16.36337417,3857.6,3857.5,25.9375894]
[1733347676903,16.36337417,3857.6,3857.5,19.7442597]
[1733347677104,16.36337417,3857.6,3857.5,15.954988]
[1733347677339,16.36337417,3857.6,3857.5,15.696888]
[1733347678962,19.69337417,3857.6,3857.5,15.696888]
[1733347679323,19.69337417,3857.6,3857.5,6.716559]
[1733347680258,19.18747627,3857.6,3857.5,11.19598747]
[1733347680444,19.18747627,3857.6,3857.5,6.716559]
[1733347680765,17.54539931,3857.6,3857.5,11.19558896]
[1733347680972,15.85852615,3857.6,3857.5,8.218859]
[1733347681257,16.07196036,3857.6,3857.5,8.218859]
[1733347681460,7.01773851,3857.6,3857.5,8.55523818]
[1733347681834,11.28351666,3857.8,3857.6,3.55]
[1733347682037,11.28351666,3857.8,3857.7,35.34234192]
[1733347682239,11.28351666,3857.8,3857.7,33.50700892]
[1733347682438,11.28351666,3857.8,3857.7,29.02944]
[1733347682773,2.60327596,3857.8,3857.7,44.50994]
[1733347682925,2.62728741,3858.1,3858.0,0.2]
[1733347683133,2.03202741,3858.1,3858.0,6.16142066]
[1733347683474,0.34526,3858.6,3858.5,2.0905]
[1733347683669,3.2239582,3859.1,3858.7,0.55]
[1733347683853,3.1418782,3859.1,3859.0,0.55]
[1733347684035,3.1418782,3859.1,3859.0,54.18598937]
[1733347684364,4.9473,3860.6,3859.0,54.18598937]
[1733347684365,3.33,3860.6,3859.4,2.0905]
[1733347684552,3.33,3860.6,3860.2,3.55]
[1733347684760,3.33,3860.6,3860.2,17.684388]
[1733347684925,3.33,3860.6,3860.2,14.397154]
[1733347685262,3.33,3860.6,3860.2,6.7913489]
[1733347685463,3.03702806,3860.3,3860.2,5.78850937]
[1733347685674,3.33,3860.6,3860.3,3.0]
[1733347685834,3.33,3860.6,3860.4,0.55]
[1733347686037,3.33,3860.6,3860.3,47.59301337]
[1733347686038,3.33,3860.6,3860.5,34.07779237]
[1733347686270,3.33,3860.6,3860.5,23.96561137]
[1733347686470,3.33,3860.6,3860.5,22.50454437]
[1733347686874,3.33,3860.6,3860.5,25.73886207]
[1733347687172,1.6302,3860.6,3860.5,22.50454437]
[1733347687376,1.6302,3860.6,3860.5,25.73554498]
[1733347687595,1.6302,3860.6,3860.5,22.50454437]
[1733347688168,1.6302,3860.6,3860.5,24.12744437]
[1733347688371,4.9602,3860.6,3860.5,27.35519105]
[1733347688675,4.9602,3860.6,3860.5,24.12744437]
[1733347688987,3.96018945,3860.6,3860.5,24.12744437]
[1733347689184,3.96018945,3860.6,3860.5,21.95454437]
[1733347689337,3.96018945,3860.6,3860.5,21.514635]
[1733347689537,3.96018945,3860.6,3860.5,16.230269]
[1733347690573,3.96018945,3860.6,3860.5,16.780269]
[1733347690780,5.76838945,3860.6,3860.5,16.780269]
[1733347691083,4.8518,3860.6,3860.5,17.19201171]
[1733347691267,3.33,3860.6,3860.5,17.19201171]
[1733347691577,2.3076,3860.6,3860.5,17.19201171]
[1733347691796,1.5218,3860.6,3860.5,17.53306257]
[1733347692079,0.1264,3861.0,3860.7,0.55]
[1733347692404,0.1264,3861.0,3860.9,3.55]
[1733347692679,0.1264,3861.0,3860.9,34.521634]
[1733347692893,0.1264,3861.0,3860.9,33.699598]
[1733347693172,0.1264,3861.0,3860.9,31.097869]
[1733347693345,3.4564,3861.0,3860.9,31.097869]
[1733347693546,3.4564,3861.0,3860.9,31.50961171]
[1733347694064,3.4564,3861.0,3860.9,25.40580871]
[1733347694268,3.80204,3861.0,3860.9,9.145695]
[1733347694579,3.80204,3861.0,3860.3,0.41174271]
[1733347694755,3.4564,3861.0,3860.3,0.41174271]
[1733347695336,3.4564,3861.0,3859.4,1.5375]
[1733347695550,1.5824,3860.9,3859.3,0.38534271]
[1733347695750,1.5824,3860.7,3858.7,1.5375]
[1733347695990,1.5824,3860.7,3858.3,5.93444271]
[1733347696190,1.5824,3860.7,3858.3,5.5491]
[1733347696494,1.5824,3860.7,3858.1,0.38534271]
[1733347696827,1.5594,3860.5,3858.3,0.38534271]
[1733347697771,1.5594,3860.5,3860.2,3.0]
[1733347697967,1.5594,3860.5,3858.3,0.38534271]
[1733347698265,1.5866,3860.4,3858.4,0.55]
[1733347698466,1.5866,3860.2,3858.4,0.55]
[1733347700474,1.5775,3860.1,3858.4,0.55]
[1733347703011,1.5775,3860.0,3858.4,0.55]
[1733347703707,1.5775,3860.0,3858.4,0.4]
[1733347704870,1.5775,3860.0,3857.9,1.93444271]
[1733347704871,1.5775,3860.0,3857.9,0.38534271]
[1733347705102,1.5251,3859.8,3857.4,1.92723431]
[1733347705274,1.5251,3859.8,3857.6,0.38534271]
[1733347705478,1.5251,3859.7,3857.6,0.38534271]
[1733347705685,1.5251,3859.7,3857.4,0.33191318]
[1733347705889,3.33,3859.8,3857.2,0.38534271]
[1733347705890,1.5251,3859.5,3857.2,0.38534271]
[1733347706668,1.5251,3859.5,3857.1,0.1635462]
[1733347706867,1.7251,3859.5,3857.1,0.49481966]
[1733347707475,1.7251,3859.5,3857.2,0.2581]
[1733347708015,1.63,3859.4,3857.2,0.2581]
[1733347708239,1.63,3859.2,3857.2,0.2581]
[1733347710497,1.5928,3859.1,3857.2,0.2581]
[1733347711332,1.5928,3859.0,3857.2,0.2581]
[1733347711556,1.5928,3859.0,3857.7,0.55]
[1733347711711,1.5928,3859.0,3857.4,3.0]
[1733347711712,1.5928,3859.0,3858.1,0.55]
[1733347711910,3.33,3859.2,3858.6,0.2581]
[1733347712114,3.33,3859.2,3858.3,0.55]
[1733347712343,3.33,3859.2,3858.3,0.38534271]
[1733347712547,3.33,3859.2,3858.5,0.55]
[1733347712899,6.66,3859.2,3858.4,0.38534271]
[1733347713111,6.66,3859.2,3858.5,0.2581]
[1733347713856,6.66,3859.2,3858.3,0.2581]
[1733347714139,6.66,3859.2,3858.5,0.2581]
[1733347715010,6.66,3859.2,3858.0,0.38534271]
[1733347715011,6.66,3859.2,3858.1,0.2581]
[1733347715199,6.66,3859.2,3858.3,0.2581]
[1733347715406,9.99,3859.2,3858.3,0.2581]
[1733347717208,9.99,3859.2,3858.1,0.2581]
[1733347717838,13.32,3859.2,3858.1,0.2581]
[1733347718746,1.5012,3859.1,3858.1,0.2581]
[1733347719494,2.98332,3859.1,3858.2,0.2581]
[1733347719649,2.98332,3859.1,3857.2,4.01100095]
[1733347719650,1.5566,3859.0,3857.5,0.2581]
[1733347720286,1.5566,3858.8,3857.5,0.2581]
[1733347720487,0.55,3858.9,3857.1,0.1635462]
[1733347720488,1.6474,3858.6,3857.1,0.1635462]
[1733347720697,1.6474,3858.6,3857.2,0.2581]
[1733347722395,1.6474,3858.6,3857.1,0.1635462]
[1733347722606,1.5989,3858.5,3857.1,0.1635462]
[1733347724853,4.9289,3858.5,3857.1,0.54888891]
[1733347725052,0.82589,3858.4,3857.1,0.54888891]
[1733347725294,0.82589,3858.4,3857.2,0.28402392]
[1733347725590,4.9289,3858.5,3857.3,0.8081]
[1733347725794,4.9289,3858.5,3857.5,0.2581]
[1733347726093,4.9289,3858.5,3857.7,0.2581]
[1733347726253,4.9289,3858.5,3857.8,0.55]
[1733347726449,4.9289,3858.5,3858.0,3.55]
[1733347726450,3.33,3858.5,3858.0,3.55]
[1733347726653,3.33,3858.5,3858.2,3.0]
[1733347726850,3.33,3858.5,3858.4,3.0]
[1733347727121,3.33,3858.5,3858.4,5.6891]
[1733347727353,6.66,3858.5,3858.4,5.6891]
[1733347727657,6.66,3858.5,3857.8,3.0]
[1733347727865,1.6614,3858.4,3857.5,3.0]
[1733347728018,1.6614,3858.4,3857.2,2.68754789]
[1733347728224,1.6614,3858.4,3856.9,0.38534271]
[1733347728225,1.6614,3858.4,3857.1,2.85109409]
[1733347728451,1.6614,3858.2,3857.1,0.1635462]
[1733347728860,1.6614,3858.2,3857.2,0.38534271]
[1733347729018,1.6614,3858.2,3857.1,2.85157369]
[1733347729517,1.6614,3858.2,3857.1,3.1635462]
[1733347729724,4.9914,3858.2,3857.1,3.1635462]
[1733347729919,4.9914,3858.2,3857.1,5.85157369]
[1733347730160,3.33,3858.2,3857.4,3.23802749]
[1733347730466,3.33,3858.2,3857.1,0.1635462]
[1733347730467,3.33,3858.2,3857.6,0.55]
[1733347730778,3.33,3858.2,3857.4,5.68802749]
[1733347730938,3.33,3858.2,3857.5,0.38534271]
[1733347731863,3.33,3858.2,3857.7,3.0]
[1733347732176,1.6322,3858.1,3857.5,2.68802749]
[1733347732372,1.6322,3858.1,3857.2,2.68802749]
[1733347732985,1.6322,3858.1,3857.3,2.71395013]
[1733347733143,1.6322,3858.1,3857.4,22.994063]
[1733347733475,6.66,3858.2,3857.5,5.68903086]
[1733347733776,6.66,3858.2,3857.8,3.0]
[1733347733989,6.66,3858.2,3858.0,3.0]
[1733347734153,6.66,3858.2,3858.1,22.772989]
[1733347734338,6.66,3858.2,3858.1,22.99790057]
[1733347734543,9.99,3858.2,3858.1,22.99790057]
[1733347734744,9.99,3858.2,3858.1,20.30886971]
[1733347735360,9.99,3858.2,3858.1,22.99790057]
[1733347735640,9.9861121,3858.2,3858.1,20.30886971]
[1733347736446,9.9861121,3858.2,3858.1,23.53570674]
[1733347736646,9.9861121,3858.2,3858.1,20.30886971]
[1733347736874,9.9861121,3858.2,3858.1,23.53570674]
[1733347737177,13.3161121,3858.2,3858.1,23.53570674]
[1733347737478,13.3161121,3858.2,3858.1,20.56696971]
[1733347738172,13.3161121,3858.2,3858.1,22.42730402]
[1733347738381,10.72888491,3858.2,3858.1,22.42730402]
[1733347738580,10.72888491,3858.2,3858.1,35.62211858]
[1733347738878,8.14174775,3858.2,3858.1,31.16730402]
[1733347739082,5.55465061,3858.2,3858.1,31.16730402]
[1733347739386,6.66,3858.5,3858.4,1.7839]
[1733347739586,4.07311295,3858.5,3858.4,56.53756302]
[1733347739789,4.07311295,3858.5,3858.4,65.27756302]
[1733347740089,3.33,3858.6,3858.4,65.52751603]
[1733347740248,2.22902823,3858.6,3858.5,56.55856302]
[1733347740444,2.97232127,3859.0,3858.9,2.3549]
[1733347740668,2.97232127,3859.0,3858.9,14.79856302]
[1733347741180,0.38567433,3859.0,3858.9,69.29856302]
[1733347741486,0.38567433,3859.0,3858.9,68.5949]
[1733347741783,0.38567433,3859.0,3858.9,61.58295362]
[1733347741959,3.71567433,3859.0,3858.9,61.58295362]
[1733347742296,3.71567433,3859.0,3858.9,57.242804]
[1733347742600,3.71567433,3859.0,3858.9,46.74910688]
[1733347742765,3.71567433,3859.0,3858.9,31.20414788]
[1733347742943,3.71567433,3859.0,3858.9,30.94604788]
[1733347743288,3.71567433,3859.0,3858.9,24.742576]
[1733347744278,3.71567433,3859.0,3858.9,29.20714488]